bitfinex/quotes_BTCUSD_20251217
["timestamp","ask_amount","ask_price","bid_price","bid_amount"]
[1765954911324,0.23008605,86924.0,86918.0,0.02521509]
[1765954911525,0.01150522,86917.0,86913.0,0.01371]
[1765954911960,0.01150522,86917.0,86914.0,0.01816]
[1765954912531,0.24160424,86919.0,86914.0,0.25977766]
[1765954912730,0.01150509,86918.0,86914.0,0.05895562]
[1765954912963,0.01150522,86917.0,86914.0,0.01816]
[1765954913377,0.01150522,86917.0,86914.0,0.02016]
[1765954914300,0.01150522,86917.0,86914.0,0.002]
[1765954914301,0.23010722,86916.0,86914.0,0.002]
[1765954914640,0.01150589,86912.0,86908.0,0.01150642]
[1765954914862,0.01150602,86911.0,86908.0,0.01150642]
[1765954915205,0.01150602,86911.0,86909.0,0.0182]
[1765954916332,0.01150589,86912.0,86909.0,0.0182]
[1765954916748,0.00025278,86911.0,86909.0,0.0182]
[1765954916953,0.00025278,86911.0,86909.0,0.0192]
[1765954918487,0.00025278,86911.0,86909.0,0.0202]
[1765954918790,0.00025278,86911.0,86909.0,0.0192]
[1765954919159,0.00025278,86911.0,86909.0,0.0202]
[1765954920142,0.23012311,86910.0,86909.0,0.0202]
[1765954920297,0.00025278,86911.0,86909.0,0.0202]
[1765954920867,0.00025278,86911.0,86910.0,0.23012311]
[1765954922329,0.00025278,86911.0,86910.0,0.23112311]
[1765954922531,0.00025278,86911.0,86910.0,0.23212311]
[1765954922962,0.00025278,86911.0,86910.0,0.002]
[1765954926409,0.00063046,86911.0,86910.0,0.002]
[1765954928651,0.00063046,86911.0,86910.0,0.02078]
[1765954928841,0.00063046,86911.0,86910.0,0.002]
[1765954933601,0.00063046,86911.0,86910.0,0.02944]
[1765954934069,0.00063046,86911.0,86910.0,0.002]
[1765954939555,0.00063046,86911.0,86910.0,0.02944]
[1765954940035,0.00063046,86911.0,86910.0,0.04822]
[1765954941817,4.6e-07,86911.0,86910.0,0.17874025]
[1765954942218,4.6e-07,86911.0,86910.0,0.16493287]
[1765954945694,4.6e-07,86911.0,86910.0,0.002]
[1765954945914,0.00820171,86911.0,86910.0,0.002]
[1765954946121,0.01896176,86911.0,86910.0,0.002]
[1765954946348,0.07647179,86911.0,86910.0,0.002]
[1765954946678,0.15127084,86911.0,86910.0,0.002]
[1765954946823,0.01150814,86895.0,86892.0,0.0182]
[1765954947162,0.01150814,86895.0,86892.0,0.04564]
[1765954947163,0.23016813,86893.0,86892.0,0.04564]
[1765954947945,0.24167334,86895.0,86892.0,0.04564]
[1765954949068,0.24167334,86895.0,86892.0,0.06442]
[1765954949069,0.23016813,86893.0,86892.0,0.06442]
[1765954950614,0.23016805,86894.0,86892.0,0.06442]
[1765954952411,0.23016805,86894.0,86893.0,0.04622]
[1765954954582,0.24167334,86895.0,86894.0,0.02769]
[1765954954795,0.23016813,86893.0,86892.0,0.0182]
[1765954955329,0.23017343,86891.0,86890.0,0.0008949]
[1765954957422,0.23117343,86891.0,86890.0,0.0008949]
[1765954967071,0.06359819,86891.0,86890.0,0.0008949]
[1765954976905,0.001,86891.0,86890.0,0.01970777]
[1765954977134,0.001,86891.0,86890.0,0.04527777]
[1765954979346,0.001,86891.0,86890.0,0.01970777]
[1765954979551,0.001,86891.0,86890.0,0.00250777]
[1765954980526,0.001,86891.0,86890.0,0.04527777]
[1765954982756,0.001,86891.0,86890.0,0.16037777]
[1765954983944,0.001,86891.0,86890.0,0.04527777]
[1765954985771,0.00064,86894.0,86893.0,0.03165]
[1765954985967,0.00064,86894.0,86893.0,0.05966]
[1765954986797,0.00064,86894.0,86891.0,0.01150867]
[1765954987027,0.24167653,86893.0,86890.0,0.00350777]
[1765954987234,0.01214827,86894.0,86890.0,0.01501657]
[1765954987472,0.01214827,86894.0,86890.0,0.01401657]
[1765954987645,0.0115084,86893.0,86890.0,0.00250777]
[1765954987994,0.23017078,86892.0,86890.0,0.00250777]
[1765954988437,0.0115084,86893.0,86890.0,0.00250777]
[1765954989050,0.23017078,86892.0,86890.0,0.00250777]
[1765954989306,0.23117078,86892.0,86890.0,0.00250777]
[1765954989509,0.001,86892.0,86890.0,0.00250777]
[1765954990340,0.002,86892.0,86890.0,0.00250777]
[1765954990913,0.23017343,86891.0,86890.0,0.0008949]
[1765954992092,0.24095324,86891.0,86890.0,0.0008949]
[1765954992689,0.24195324,86891.0,86890.0,0.0008949]
[1765954993491,0.29946327,86891.0,86890.0,0.0008949]
[1765954995063,0.29846327,86891.0,86890.0,0.0008949]
[1765954995552,0.30246327,86891.0,86890.0,0.0008949]
[1765954996684,0.30245634,86891.0,86890.0,0.0008949]
[1765954997312,0.24494631,86891.0,86890.0,0.0008949]
[1765954999128,0.30245634,86891.0,86890.0,0.0008949]
[1765954999738,0.24494631,86891.0,86890.0,0.0008949]
[1765955001823,0.01477288,86891.0,86890.0,0.0008949]
[1765955002032,0.01477288,86891.0,86890.0,0.04886777]
[1765955002033,0.004,86891.0,86890.0,0.04886777]
[1765955002678,0.002,86891.0,86890.0,0.04886777]
[1765955003111,0.003,86891.0,86890.0,0.04886777]
[1765955003501,0.001,86891.0,86890.0,0.04886777]
[1765955003849,0.002,86891.0,86890.0,0.04886777]
[1765955008218,0.002,86891.0,86890.0,0.16396777]
[1765955008790,0.00064,86894.0,86890.0,0.16396777]
[1765955008791,0.00064,86894.0,86893.0,0.39162813]
[1765955009000,0.00064,86894.0,86893.0,0.393241]
[1765955010422,0.00064,86894.0,86893.0,0.395241]
[1765955011157,0.00064,86894.0,86893.0,0.398241]
[1765955011612,0.00064,86894.0,86893.0,0.73695939]
[1765955012016,0.00064,86894.0,86893.0,0.73995939]
[1765955021447,0.00064,86894.0,86893.0,0.75815939]
[1765955024455,0.00064,86894.0,86893.0,0.64305939]
[1765955024601,0.00064,86894.0,86893.0,0.75815939]
[1765955031860,0.00064,86894.0,86893.0,0.64305939]
[1765955032144,0.00064,86894.0,86893.0,0.75815939]
[1765955034802,0.00064,86894.0,86893.0,0.689941]
[1765955035010,0.00064,86894.0,86893.0,0.708141]
[1765955035707,0.00064,86894.0,86893.0,0.705141]
[1765955035908,0.00064,86894.0,86893.0,0.702141]
[1765955036134,0.00064,86894.0,86893.0,0.706141]
[1765955036908,0.23080548,86894.0,86893.0,0.07017287]
[1765955037061,0.00064,86894.0,86893.0,0.13906287]
[1765955037256,0.00064,86894.0,86893.0,0.04216287]
[1765955037884,0.00064,86894.0,86893.0,0.04016287]
[1765955038110,0.00064,86894.0,86893.0,0.03916287]
[1765955038313,0.00064,86894.0,86893.0,0.0192]
[1765955038470,0.00064,86894.0,86893.0,0.0202]
[1765955043345,0.00064,86894.0,86893.0,0.02181287]
[1765955043753,0.05815003,86894.0,86893.0,0.002]
[1765955043939,0.00884125,86894.0,86893.0,0.002]
[1765955044154,0.07710792,86894.0,86893.0,0.002]
[1765955044356,0.07710186,86894.0,86893.0,0.002]
[1765955044758,0.07710186,86894.0,86893.0,0.001]
[1765955044945,0.11500016,86891.0,86890.0,0.0008949]
[1765955045280,0.23017343,86891.0,86890.0,0.0008949]
[1765955046077,0.24167653,86893.0,86890.0,0.0008949]
[1765955046078,0.23017078,86892.0,86890.0,0.0008949]
[1765955046608,0.0115084,86893.0,86891.0,0.02562]
[1765955046834,0.0115084,86893.0,86892.0,0.0426]
[1765955047008,0.0115084,86893.0,86892.0,0.01698]
[1765955047232,0.23017078,86892.0,86890.0,0.0008949]
[1765955048550,0.001,86891.0,86890.0,0.0008949]
[1765955049093,0.23117255,86892.0,86890.0,0.0008949]
[1765955049317,0.23217255,86892.0,86890.0,0.0008949]
[1765955049910,0.23017255,86892.0,86890.0,0.0008949]
[1765955050315,0.002,86891.0,86890.0,0.0008949]
[1765955050450,0.001,86891.0,86890.0,0.0008949]
[1765955051065,0.05851003,86891.0,86890.0,0.0008949]
[1765955051683,0.001,86891.0,86890.0,0.0008949]
[1765955052223,0.23117255,86892.0,86890.0,0.0008949]
[1765955052224,0.03104077,86924.0,86902.0,0.01150721]
[1765955052424,0.24157001,86932.0,86910.0,0.34683598]
[1765955052596,0.01150364,86929.0,86910.0,0.34683598]
[1765955052796,0.29957253,86930.0,86910.0,0.34683598]
[1765955053201,0.01150364,86929.0,86910.0,0.34683598]
[1765955053610,0.01150456,86922.0,86910.0,0.34883598]
[1765955053974,0.01150443,86923.0,86910.0,0.34883598]
[1765955054202,0.0115043,86924.0,86910.0,0.34883598]
[1765955054415,0.01150417,86925.0,86910.0,0.34883598]
[1765955054842,0.0115043,86924.0,86910.0,0.35083598]
[1765955055048,0.2415874,86926.0,86910.0,0.35083598]
[1765955055261,0.01150403,86926.0,86910.0,0.35083598]
[1765955055672,0.23008612,86924.0,86910.0,0.35083598]
[1765955056099,0.0115043,86924.0,86910.0,0.35083598]
[1765955056306,0.01150443,86923.0,86910.0,0.35083598]
[1765955056704,0.0115043,86924.0,86910.0,0.35083598]
[1765955057340,0.24158904,86925.0,86910.0,0.35083598]
[1765955057564,0.01150443,86923.0,86910.0,0.35083598]
[1765955057928,0.01150456,86922.0,86910.0,0.35083598]
[1765955058478,0.01150469,86921.0,86910.0,0.35083598]
[1765955058763,0.01150456,86922.0,86910.0,0.35083598]
[1765955059139,0.01150469,86921.0,86910.0,0.35083598]
[1765955060527,0.01150456,86922.0,86910.0,0.35083598]
[1765955060840,0.01150469,86921.0,86910.0,0.35083598]
[1765955061043,0.24160066,86921.0,86910.0,0.35083598]
[1765955061279,0.01150469,86921.0,86910.0,0.35083598]
[1765955062631,0.2300808,86926.0,86910.0,0.35083598]
[1765955063030,0.01150443,86923.0,86910.0,0.35083598]
[1765955063307,0.01150456,86922.0,86910.0,0.35083598]
[1765955063658,0.01150443,86923.0,86910.0,0.35083598]
[1765955063885,0.23008403,86925.0,86910.0,0.35083598]
[1765955064231,0.2415882,86925.0,86910.0,0.35083598]
[1765955064838,0.01150377,86928.0,86910.0,0.35083598]
[1765955065136,0.01150403,86926.0,86910.0,0.35083598]
[1765955065249,0.01150377,86928.0,86910.0,0.35083598]
[1765955066302,0.0115039,86927.0,86910.0,0.35083598]
[1765955066532,0.01150417,86925.0,86910.0,0.35083598]
[1765955067101,0.24158858,86925.0,86910.0,0.35083598]
[1765955067689,0.01150456,86922.0,86910.0,0.35083598]
[1765955068095,0.01150443,86923.0,86910.0,0.35083598]
[1765955068321,0.2415956,86923.0,86910.0,0.35083598]
[1765955068516,0.01150443,86923.0,86910.0,0.35083598]
[1765955069509,0.01150443,86923.0,86910.0,0.23573598]
[1765955069921,0.01150417,86925.0,86910.0,0.23573598]
[1765955070132,0.01150403,86926.0,86910.0,0.23573598]
[1765955070334,0.0115039,86927.0,86910.0,0.35083598]
[1765955071636,0.01150403,86926.0,86910.0,0.23573598]
[1765955071838,0.01150443,86923.0,86910.0,0.35083598]
[1765955072260,0.24159733,86922.0,86910.0,0.35083598]
[1765955072506,0.01150483,86920.0,86910.0,0.35083598]
[1765955072727,0.24161226,86917.0,86910.0,0.36903598]
[1765955072966,0.01150536,86916.0,86910.0,0.36903598]
[1765955073171,0.01150549,86915.0,86910.0,0.36903598]
[1765955073591,0.24161501,86916.0,86910.0,0.36703598]
[1765955073795,0.01150562,86914.0,86910.0,0.27655598]
[1765955073998,0.01150549,86915.0,86910.0,0.27655598]
[1765955074209,0.23010616,86917.0,86910.0,0.23373598]
[1765955074420,0.23010616,86917.0,86910.0,0.25193598]
[1765955075731,0.01150536,86916.0,86910.0,0.25193598]
[1765955076590,0.01150522,86917.0,86910.0,0.25193598]
[1765955077264,0.01150536,86916.0,86910.0,0.25193598]
[1765955077437,0.01150549,86915.0,86910.0,0.25193598]
[1765955077840,0.01150562,86914.0,86910.0,0.25193598]
[1765955078249,0.01150575,86913.0,86910.0,0.002]
[1765955078453,0.01150575,86913.0,86910.0,0.0202]
[1765955078836,0.24162261,86913.0,86910.0,0.0202]
[1765955079044,0.01150575,86913.0,86910.0,0.0202]
[1765955079267,0.24161169,86917.0,86910.0,0.0202]
[1765955079491,0.01150575,86913.0,86910.0,0.0202]
[1765955079877,0.24162349,86913.0,86910.0,0.0202]
[1765955080075,0.23011979,86912.0,86910.0,0.0202]
[1765955080287,0.01150575,86913.0,86910.0,0.0202]
[1765955081045,0.24162278,86913.0,86910.0,0.0202]
[1765955081274,0.24161713,86915.0,86910.0,0.0202]
[1765955081275,0.01150549,86915.0,86910.0,0.0202]
[1765955081483,0.24161079,86917.0,86910.0,0.0202]
[1765955082360,0.23010193,86918.0,86911.0,0.24162648]
[1765955082581,0.23010875,86916.0,86911.0,0.24162648]
[1765955082785,0.23010283,86918.0,86912.0,0.01150589]
[1765955083162,0.01150536,86916.0,86912.0,0.01150589]
[1765955083326,0.01150536,86916.0,86912.0,0.01121063]
[1765955084581,0.01150536,86916.0,86912.0,0.24132646]
[1765955084766,0.23010283,86918.0,86914.0,0.01150562]
[1765955085756,0.23010283,86918.0,86914.0,0.24161646]
[1765955086164,0.23010283,86918.0,86914.0,0.24132121]
[1765955086853,0.01150522,86917.0,86912.0,0.01150589]
[1765955087071,0.24158817,86925.0,86921.0,0.01150469]
[1765955087273,0.0107682,86924.0,86922.0,0.02336]
[1765955087521,0.0107682,86924.0,86922.0,0.26495336]
[1765955087720,0.01150403,86926.0,86923.0,0.24159148]
[1765955087858,0.01076862,86925.0,86923.0,0.24159148]
[1765955088057,0.00041069,86924.0,86923.0,0.24159148]
[1765955088280,0.01117931,86924.0,86923.0,0.24159148]
[1765955088686,0.00041069,86924.0,86923.0,0.23008869]
[1765955089290,0.00041069,86924.0,86923.0,0.27031869]
[1765955090356,0.00141069,86924.0,86923.0,0.27031869]
[1765955091981,0.01291499,86924.0,86920.0,0.02970483]
[1765955092207,0.24259261,86924.0,86920.0,0.02970483]
[1765955092365,0.0125043,86924.0,86921.0,0.24159868]
[1765955092766,0.00034752,86922.0,86921.0,0.24159868]
[1765955093007,0.00034752,86922.0,86921.0,0.01150469]
[1765955093359,0.00034752,86922.0,86921.0,0.05173469]
[1765955095735,0.00034752,86922.0,86921.0,0.02837469]
[1765955097308,0.00034752,86922.0,86921.0,0.05173469]
[1765955100748,0.00034752,86922.0,86921.0,0.01150469]
[1765955100966,0.00034752,86922.0,86921.0,0.05173469]
[1765955102403,0.00034752,86922.0,86921.0,0.02837469]
[1765955102584,0.00034752,86922.0,86921.0,0.01150469]
[1765955106417,0.01185208,86922.0,86918.0,0.01150509]
[1765955106588,0.01150509,86918.0,86915.0,0.01150549]
[1765955106793,0.24160034,86921.0,86916.0,0.02966536]
[1765955106994,0.24160034,86921.0,86914.0,0.24161814]
[1765955106995,0.23009928,86919.0,86914.0,0.24161814]
[1765955107199,0.01150589,86912.0,86908.0,0.01150642]
[1765955107396,0.01150562,86914.0,86909.0,0.01816]
[1765955107954,0.01150589,86912.0,86909.0,0.01816]
[1765955108154,0.23011517,86913.0,86909.0,0.02966628]
[1765955108359,0.24162092,86913.0,86909.0,0.25979193]
[1765955108777,0.24162092,86913.0,86909.0,0.26079193]
[1765955108982,0.24162092,86913.0,86909.0,0.25979193]
[1765955109309,0.24162092,86913.0,86910.0,0.01150615]
[1765955109492,0.01150522,86917.0,86913.0,0.01150575]
[1765955109699,0.24160261,86920.0,86914.0,0.24161657]
[1765955109882,0.01150483,86920.0,86916.0,0.24161151]
[1765955110079,0.01150417,86925.0,86920.0,0.03764483]
[1765955110305,0.01076449,86924.0,86923.0,0.04378]
[1765955110513,0.00011292,86924.0,86923.0,0.04378]
[1765955110714,0.00011292,86924.0,86923.0,0.01764]
[1765955111386,0.01150443,86923.0,86920.0,0.01150483]
[1765955111599,0.00011292,86924.0,86921.0,0.24159702]
[1765955112163,0.00011292,86924.0,86923.0,0.23008869]
[1765955112349,0.00111292,86924.0,86923.0,0.23008869]
[1765955112558,0.00152361,86924.0,86923.0,0.23008869]
[1765955112740,0.00052361,86924.0,86923.0,0.23008869]
[1765955113690,0.00152361,86924.0,86923.0,0.23008869]
[1765955114318,0.00152361,86924.0,86921.0,0.24159702]
[1765955114511,0.00111292,86924.0,86922.0,0.23008938]
[1765955114735,0.00111292,86924.0,86921.0,0.24159702]
[1765955115070,0.00011292,86924.0,86922.0,0.23008951]
[1765955115424,0.00111292,86924.0,86922.0,0.23008951]
[1765955115831,0.00011292,86924.0,86922.0,0.23008951]
[1765955116245,0.00111292,86924.0,86922.0,0.23008951]
[1765955119097,0.00111292,86924.0,86923.0,0.04378]
[1765955119968,0.00011292,86924.0,86923.0,0.04378]
[1765955120464,0.00052361,86924.0,86923.0,0.04378]
[1765955121416,0.00152361,86924.0,86923.0,0.04378]
[1765955125802,0.00152361,86924.0,86922.0,0.23008951]
[1765955126004,0.00111292,86924.0,86922.0,0.23008951]
[1765955126165,0.00037911,86923.0,86922.0,0.25622951]
[1765955126362,0.00037911,86923.0,86922.0,0.27386951]
[1765955128234,0.00111292,86924.0,86923.0,0.05798089]
[1765955128388,0.00011292,86924.0,86923.0,0.05959376]
[1765955129754,0.00011292,86924.0,86923.0,0.01581376]
[1765955130142,0.00011292,86924.0,86923.0,0.00323376]
[1765955130932,0.00931417,86924.0,86923.0,0.00162089]
[1765955131274,0.00111292,86924.0,86923.0,0.27548958]
[1765955131478,0.00111292,86924.0,86923.0,0.00162089]
[1765955144071,0.00111292,86924.0,86923.0,0.05374089]
[1765955145666,0.01188041,86924.0,86923.0,0.05374089]
[1765955145866,0.00111292,86924.0,86923.0,0.05374089]
[1765955147118,0.00111292,86924.0,86923.0,0.06915908]
[1765955147295,0.00111292,86924.0,86923.0,0.05535376]
[1765955147815,0.00111292,86924.0,86923.0,0.17045376]
[1765955148220,0.00011292,86924.0,86923.0,0.17045376]
[1765955148596,0.00011292,86924.0,86923.0,0.17145376]
[1765955148984,0.00011292,86924.0,86923.0,0.17245376]
[1765955150195,0.00011292,86924.0,86923.0,0.05735376]
[1765955150843,0.00011292,86924.0,86923.0,0.17245376]
[1765955151044,0.00011292,86924.0,86923.0,0.18625908]
[1765955151563,0.00011292,86924.0,86923.0,0.17245376]
[1765955152038,0.00011292,86924.0,86923.0,0.18625908]
[1765955152396,0.00011292,86924.0,86923.0,0.17245376]
[1765955161588,0.00011292,86924.0,86923.0,0.18625908]
[1765955161778,0.00011292,86924.0,86923.0,0.17245376]
[1765955162801,0.00011292,86924.0,86923.0,0.17145376]
[1765955163205,0.00011292,86924.0,86923.0,0.17345376]
[1765955163811,0.00011292,86924.0,86923.0,0.17245376]
[1765955164618,0.00011292,86924.0,86923.0,0.17345376]
[1765955165308,0.00011292,86924.0,86923.0,0.46415376]
[1765955165628,0.00011292,86924.0,86923.0,0.51417215]
[1765955168126,0.00011292,86924.0,86923.0,0.48231376]
[1765955169571,0.00011292,86924.0,86923.0,0.53233215]
[1765955169778,0.00025269,86931.0,86930.0,0.72631856]
[1765955169982,0.00025269,86931.0,86930.0,0.72793143]
[1765955171904,0.00025269,86931.0,86930.0,0.73593143]
[1765955179053,0.0004,86969.0,86968.0,0.22996964]
[1765955179364,0.00051324,86969.0,86968.0,0.22996964]
[1765955179600,0.02225608,86976.0,86968.0,0.22996964]
[1765955179601,0.0107591,86975.0,86974.0,0.24145145]
[1765955179799,0.0004,86978.0,86976.0,0.27037849]
[1765955180003,0.0004,86978.0,86976.0,0.38709136]
[1765955180433,0.0004,86980.0,86979.0,0.15553]
[1765955180629,0.0004,86980.0,86979.0,0.15714287]
[1765955181993,0.0004,86980.0,86979.0,0.15814287]
[1765955183176,0.0004,86980.0,86979.0,0.15914287]
[1765955183742,0.0004,86980.0,86979.0,0.15814287]
[1765955184011,0.0002,87011.0,87010.0,0.05238]
[1765955184218,0.0002,87011.0,87010.0,0.4171115]
[1765955184219,0.00057754,87011.0,87010.0,0.4171115]
[1765955184868,0.01148778,87049.0,87045.0,0.01148831]
[1765955185075,0.00011323,87049.0,87046.0,0.01148817]
[1765955185330,0.00011323,87049.0,87047.0,0.22976093]
[1765955185578,0.00011323,87049.0,87046.0,0.01148817]
[1765955185808,0.00011323,87049.0,87047.0,0.22976093]
[1765955186265,0.00011323,87049.0,87046.0,0.01148817]
[1765955186484,0.01160101,87049.0,87046.0,0.01148817]
[1765955186614,0.00011323,87049.0,87046.0,0.01148817]
[1765955186837,0.00111323,87049.0,87046.0,0.01148817]
[1765955187204,0.01260101,87049.0,87046.0,0.01148817]
[1765955187416,0.00311323,87049.0,87046.0,0.01148817]
[1765955187660,0.01148804,87047.0,87037.0,0.22978481]
[1765955187867,0.01148831,87045.0,87041.0,0.01148883]
[1765955188055,0.01148844,87044.0,87042.0,0.01816]
[1765955188465,0.01148817,87046.0,87042.0,0.25942113]
[1765955188873,0.01148817,87046.0,87043.0,0.01148857]
[1765955189470,0.01148817,87046.0,87042.0,0.0296487]
[1765955189894,0.01148831,87045.0,87042.0,0.01816]
[1765955190099,0.22976885,87044.0,87042.0,0.01816]
[1765955190305,0.01148844,87044.0,87041.0,0.01816]
[1765955190510,0.01968969,87044.0,87041.0,0.01816]
[1765955190836,0.22977149,87043.0,87041.0,0.01816]
[1765955191253,0.00820125,87042.0,87041.0,0.01816]
[1765955191692,0.22977677,87041.0,87035.0,0.01148963]
[1765955191934,0.22977677,87041.0,87038.0,0.01816]
[1765955192608,0.0830003,87040.0,87023.0,0.1151]
[1765955192847,0.01149015,87031.0,87026.0,0.01149081]
[1765955193083,0.01149015,87031.0,87026.0,0.24130718]
[1765955193084,0.01149029,87030.0,87026.0,0.24130718]
[1765955193496,0.01148976,87034.0,87030.0,0.01149029]
[1765955193699,0.01148976,87034.0,87031.0,0.01149015]
[1765955194106,0.01148989,87033.0,87030.0,0.01149029]
[1765955194308,0.01148976,87034.0,87031.0,0.01149015]
[1765955194516,0.24127916,87037.0,87032.0,0.22980015]
[1765955194734,0.0114891,87039.0,87034.0,0.01148976]
[1765955194931,0.24127407,87038.0,87034.0,0.01148976]
[1765955195343,0.08628802,87040.0,87034.0,0.24128408]
[1765955195553,0.22976098,87047.0,87039.0,0.22978205]
[1765955195737,0.01160101,87049.0,87037.0,0.01148936]
[1765955195738,0.00011323,87049.0,87046.0,0.24125165]
[1765955196023,0.01160101,87049.0,87046.0,0.01148817]
[1765955196245,0.00011323,87049.0,87046.0,0.01148817]
[1765955196381,0.00365905,87047.0,87046.0,0.01148817]
[1765955196772,0.00365905,87047.0,87046.0,0.05282817]
[1765955196981,0.00365905,87047.0,87046.0,0.01148817]
[1765955197380,0.00365905,87047.0,87046.0,0.05444104]
[1765955197794,0.00365905,87047.0,87046.0,0.00161287]
[1765955197998,0.00465905,87047.0,87046.0,0.29087644]
[1765955199833,0.00365905,87047.0,87046.0,0.29087644]
[1765955200042,0.00465905,87047.0,87046.0,0.29087644]
[1765955200216,0.00365905,87047.0,87046.0,0.29087644]
[1765955200424,0.00365905,87047.0,87046.0,0.28556383]
[1765955200774,0.00465905,87047.0,87046.0,0.28556383]
[1765955201738,0.00465905,87047.0,87046.0,0.27927122]
[1765955204134,0.00465905,87047.0,87046.0,0.25388122]
[1765955204747,0.00465905,87047.0,87046.0,0.36898122]
[1765955205910,0.00465905,87047.0,87046.0,0.27927122]
[1765955207596,0.00465905,87047.0,87046.0,0.25388122]
[1765955207815,0.00465905,87047.0,87046.0,0.22976357]
[1765955208215,0.00465905,87047.0,87045.0,0.01816]
[1765955208412,0.00465905,87047.0,87039.0,0.0296491]
[1765955208413,0.24126283,87042.0,87039.0,0.0296491]
[1765955208622,0.01148936,87037.0,87033.0,0.01148989]
[1765955208955,0.01148936,87037.0,87031.0,0.24129208]
[1765955208956,0.24128224,87035.0,87032.0,0.01149002]
[1765955209166,0.24128224,87035.0,87026.0,0.1151]
[1765955209167,0.01149055,87028.0,87024.0,0.24798116]
[1765955209312,0.00820125,87034.0,87030.0,0.01149029]
[1765955209313,0.29878186,87034.0,87030.0,0.01149029]
[1765955209517,0.00161287,87035.0,87032.0,0.01149002]
[1765955209740,0.08723133,87037.0,87033.0,0.01148989]
[1765955209942,0.01148949,87036.0,87032.0,0.01149002]
[1765955210155,0.01148963,87035.0,87032.0,0.01149002]
[1765955210355,0.0107273,87034.0,87032.0,0.01149002]
[1765955210555,0.0117273,87034.0,87032.0,0.01149002]
[1765955210997,0.0107273,87034.0,87032.0,0.01149002]
[1765955211844,0.0107273,87034.0,87031.0,0.24129271]
[1765955212065,0.0107273,87033.0,87032.0,0.01149002]
[1765955212464,0.01074478,87035.0,87033.0,0.22979789]
[1765955212691,0.01148936,87037.0,87034.0,0.01148976]
[1765955212885,0.001,87034.0,87033.0,0.01148989]
[1765955213104,0.24129029,87033.0,87028.0,0.01149055]
[1765955213265,0.01149042,87029.0,87025.0,0.01149095]
[1765955213467,0.01149068,87027.0,87021.0,0.01149147]
[1765955213675,0.01149134,87022.0,87019.0,0.24132619]
[1765955214007,0.01149174,87019.0,87016.0,0.01149213]
[1765955214262,0.01074478,87018.0,87017.0,0.011492]
[1765955214794,0.01085795,87018.0,87017.0,0.011492]
[1765955215437,0.01185795,87018.0,87017.0,0.011492]
[1765955216305,0.00111317,87018.0,87017.0,0.011492]
[1765955216702,0.00111317,87018.0,87012.0,0.01816]
[1765955216703,0.01149425,87000.0,86996.0,0.01149478]
[1765955216899,0.01074478,86999.0,86996.0,0.24139006]
[1765955217231,0.01074478,86999.0,86995.0,0.01149491]
[1765955217232,0.01074478,86998.0,86995.0,0.01149491]
[1765955217435,0.01149438,86999.0,86995.0,0.01149491]
[1765955217643,0.2413847,86999.0,86994.0,0.22989946]
[1765955217895,0.2298703,87006.0,86989.0,0.22991359]
[1765955217896,0.01149319,87008.0,87000.0,0.01149425]
[1765955218065,0.01816,87008.0,87007.0,0.01149332]
[1765955218275,0.01816,87009.0,87007.0,0.01149332]
[1765955218417,0.01074916,87008.0,87007.0,0.01149332]
[1765955219031,0.01074916,87008.0,87006.0,0.01149346]
[1765955219448,0.01074916,87008.0,87007.0,0.04134]
[1765955219648,0.00011317,87018.0,87012.0,0.01149266]
[1765955219849,0.00011317,87018.0,87015.0,0.12659227]
[1765955220024,0.00011317,87018.0,87016.0,0.22984042]
[1765955220482,0.00271368,87017.0,87016.0,0.22984042]
[1765955221069,0.01420568,87017.0,87013.0,0.25321305]
[1765955221243,0.011492,87017.0,87013.0,0.25321305]
[1765955221443,0.011492,87017.0,87014.0,0.0114924]
[1765955222257,0.012492,87017.0,87014.0,0.0114924]
[1765955222457,0.001,87017.0,87014.0,0.0114924]
[1765955222664,0.001,87017.0,87014.0,0.241338]
[1765955222950,0.001,87017.0,87015.0,0.01149227]
[1765955223110,0.002,87017.0,87015.0,0.01149227]
[1765955223675,0.01149227,87015.0,87009.0,0.01149306]
[1765955223879,0.2413622,87007.0,87002.0,0.01149398]
[1765955224126,0.00820125,87006.0,87002.0,0.01149398]
[1765955224347,0.01149412,87001.0,86996.0,0.24138996]
[1765955224546,0.01149425,87000.0,86997.0,0.01149464]
[1765955224717,0.01149359,87005.0,86999.0,0.01149438]
[1765955224903,0.01149359,87005.0,87002.0,0.01149398]
[1765955225743,0.01149359,87005.0,87002.0,0.01249398]
[1765955225968,0.24135827,87008.0,87005.0,0.01149359]
[1765955226338,0.02965319,87008.0,87005.0,0.24136466]
[1765955226771,0.02965319,87008.0,87003.0,0.24137098]
[1765955226924,0.01149346,87006.0,87003.0,0.01149385]
[1765955227826,0.01149359,87005.0,87002.0,0.01149398]
[1765955228229,0.01149372,87004.0,87001.0,0.2413761]
[1765955228851,0.01149372,87004.0,86999.0,0.01149438]
[1765955229043,0.01149359,87005.0,87000.0,0.01149425]
[1765955229452,0.01149425,87000.0,86997.0,0.2413853]
[1765955229716,0.01149425,87000.0,86997.0,0.01149464]
[1765955230483,0.01149385,87003.0,86998.0,0.24138485]
[1765955230894,0.2413633,87006.0,87000.0,0.01149425]
[1765955231117,0.01149385,87003.0,86995.0,0.26891649]
[1765955231311,0.01149425,87000.0,86997.0,0.01149464]
[1765955231910,0.01149425,87000.0,86997.0,0.01249464]
[1765955232830,0.01149425,87000.0,86997.0,0.01349464]
[1765955233657,0.24138144,87000.0,86997.0,0.002]
[1765955233872,0.22989017,86999.0,86997.0,0.002]
[1765955234281,0.24138144,87000.0,86997.0,0.002]
[1765955235549,0.24138144,87000.0,86997.0,0.003]
[1765955236042,0.24138144,87000.0,86997.0,0.001]
[1765955236742,0.01149412,87001.0,86997.0,0.01249464]
[1765955236962,0.01149398,87002.0,86999.0,0.01149438]
[1765955237472,0.01149372,87004.0,87001.0,0.01149412]
[1765955237922,0.01149332,87007.0,87002.0,0.24137153]
[1765955238172,0.01149306,87009.0,87004.0,0.2413682]
[1765955238384,0.24136205,87007.0,87003.0,0.03791385]
[1765955238595,0.01149332,87007.0,87004.0,0.01149372]
[1765955238799,0.01149332,87007.0,87005.0,0.02642]
[1765955239007,0.01149346,87006.0,87003.0,0.01310672]
[1765955239419,0.22987448,87004.0,87003.0,0.00161287]
[1765955240691,0.24136298,87006.0,87003.0,0.00161287]
[1765955241245,0.01149319,87008.0,87003.0,0.24298217]
[1765955241450,0.01149306,87009.0,87003.0,0.01310672]
[1765955241655,0.01149319,87008.0,87003.0,0.01310672]
[1765955242073,0.22987076,87006.0,87003.0,0.01310672]
[1765955242475,0.24136422,87006.0,87003.0,0.00161287]
[1765955242684,0.22987448,87004.0,87003.0,0.00161287]
[1765955243781,0.2321783,87004.0,87003.0,0.00161287]
[1765955243989,0.2321783,87004.0,86994.0,0.24139482]
[1765955243990,0.01149451,86998.0,86991.0,0.25956192]